{"text_format":"1","workbook":"xlsx","n_sheets":1,"sheets":["Calendrier"],"not_rendered":{"charts":0,"images":0,"macros":1,"external_links":0,"defined_names":0,"comments":0,"pivot_tables":0},"unopened":[],"bounds":{"document_bytes":16777216,"sheet_cells":100000,"rows_first":2000,"rows_last":500,"rows_between":2000,"halvings":0,"cell_chars":16384,"cell_head_chars":4096},"cells_cut":0,"cells_raw":0,"read":"whole","date_system":"1900"}

{"sheet":"Calendrier","index":0,"n_rows":17,"n_cols":37,"rows_kept":17,"cut":false,"hidden":false,"merged":[[7,0,7,1],[8,0,8,1],[9,0,9,1]]}
[{"$f":"DATE(A6,A5,1)","v":"2016-03-01"},{"$f":"A1+1","v":"2016-03-02"},{"$f":"B1+1","v":"2016-03-03"},"2016-03-04","2016-03-05","2016-03-06","2016-03-07","2016-03-08","2016-03-09","2016-03-10","2016-03-11","2016-03-12","2016-03-13","2016-03-14","2016-03-15","2016-03-16","2016-03-17","2016-03-18","2016-03-19","2016-03-20","2016-03-21","2016-03-22","2016-03-23","2016-03-24","2016-03-25","2016-03-26","2016-03-27","2016-03-28","2016-03-29","2016-03-30","2016-03-31",null,null,null,null,"Jour de l'an","2016-01-01"]
[{"$f":"DATE(A6,A5,1)","v":"2016-03-01"},{"$f":"A2+1","v":"2016-03-02"},{"$f":"B2+1","v":"2016-03-03"},"2016-03-04","2016-03-05","2016-03-06","2016-03-07","2016-03-08","2016-03-09","2016-03-10","2016-03-11","2016-03-12","2016-03-13","2016-03-14","2016-03-15","2016-03-16","2016-03-17","2016-03-18","2016-03-19","2016-03-20","2016-03-21","2016-03-22","2016-03-23","2016-03-24","2016-03-25","2016-03-26","2016-03-27","2016-03-28","2016-03-29","2016-03-30","2016-03-31",null,null,null,null,"Lundi de Pâques","2016-03-28"]
[null,null,null,null,null,null,null,null,null,null,null,null,null,null,null,null,null,null,null,null,null,null,null,null,null,null,null,null,null,null,null,null,null,null,null,"Fête du Travail","2016-05-01"]
[null,null,null,null,null,null,null,null,null,null,null,null,null,null,null,null,null,null,null,null,null,null,null,null,null,null,null,null,null,null,null,null,null,null,null,"08/05/1945 (armistice 39-45)","2016-05-08"]
[3,null,null,null,null,null,null,null,null,null,null,null,null,null,null,null,null,null,null,null,null,null,null,null,null,null,null,null,null,null,null,null,null,null,null,"Jeudi de l'Ascension","2016-05-05"]
[2016,null,null,null,null,null,null,null,null,null,null,null,null,null,null,null,null,null,null,null,null,null,null,null,null,null,null,null,null,null,null,null,null,null,"Janvier","Lundi de Pentecôte","2016-05-16"]
[null,null,null,null,null,null,null,null,null,null,null,null,null,null,null,null,null,null,null,null,null,null,null,null,null,null,null,null,null,null,null,null,null,null,"Février","Fête Nationale","2016-07-14"]
["Légende",null,null,null,null,null,null,null,null,null,null,null,null,null,null,null,null,null,null,null,null,null,null,null,null,null,null,null,null,null,null,null,null,null,"Mars","Assomption","2016-08-15"]
["Week-end",null,null,null,null,null,null,null,null,null,null,null,null,null,null,null,null,null,null,null,null,null,null,null,null,null,null,null,null,null,null,null,null,null,"Avril","La Toussaint","2016-11-01"]
["Fériés",null,null,null,null,null,null,null,null,null,null,null,null,null,null,null,null,null,null,null,null,null,null,null,null,null,null,null,null,null,null,null,null,null,"Mai","Armistice","2016-11-11"]
[null,null,null,null,null,null,null,null,null,null,null,null,null,null,null,null,null,null,null,null,null,null,null,null,null,null,null,null,null,null,null,null,null,null,"Juin","Noël","2016-12-25"]
[null,null,null,null,null,null,null,null,null,null,null,null,null,null,null,null,null,null,null,null,null,null,null,null,null,null,null,null,null,null,null,null,null,null,"Juillet"]
[null,null,null,null,null,null,null,null,null,null,null,null,null,null,null,null,null,null,null,null,null,null,null,null,null,null,null,null,null,null,null,null,null,null,"Août"]
[null,null,null,null,null,null,null,null,null,null,null,null,null,null,null,null,null,null,null,null,null,null,null,null,null,null,null,null,null,null,null,null,null,null,"Septembre"]
[null,null,null,null,null,null,null,null,null,null,null,null,null,null,null,null,null,null,null,null,null,null,null,null,null,null,null,null,null,null,null,null,null,null,"Octobre"]
[null,null,null,null,null,null,null,null,null,null,null,null,null,null,null,null,null,null,null,null,null,null,null,null,null,null,null,null,null,null,null,null,null,null,"Novembre"]
[null,null,null,null,null,null,null,null,null,null,null,null,null,null,null,null,null,null,null,null,null,null,null,null,null,null,null,null,null,null,null,null,null,null,"Décembre"]